Cogmind - Beta 9.6 @@@ ROGUE MODE // 2020.05.08 @ 20:11:01 Player: TheGreatBorealis Result: Destroyed by Y-45 Defender with Heavy Assault Rifle Performance ------------- Evolutions (1) 500 Regions Visited (2) 400 Robots Destroyed (8) 40 Value Destroyed (131) 131 Prototype IDs (0) 0 Alien Tech Used (0) 0 Bonus (0) 0 TOTAL SCORE: 1071 Bonus ------- None Cogmind --------- Core Integrity 0/400 Matter 18/300 Energy 100/100 System Corruption 0% Temperature Cool (9) Movement Core (200) Ox3 Location -9/Materials Parts ------- > --- POWER (2) -------- (None) > --- PROPULSION (2) --- (None) > --- UTILITY (2) ------ Small Storage Unit Small Storage Unit > --- WEAPON (3) ------- Grenade Launcher > --- INVENTORY (8) ---- Hover Unit Hover Unit Structural Scanner Peak State ------------ > --- POWER ------------ Ion Engine > --- PROPULSION ------- Improved Aluminum Leg Improved Aluminum Leg > --- UTILITY ---------- Small Storage Unit > --- WEAPON ----------- Assault Rifle Light Assault Rifle > --- INVENTORY -------- Light Ion Engine Hover Unit Hover Unit Small Storage Unit Structural Scanner [Rating: 8] Favorites ----------- Power Ion Engine Engine Ion Engine Propulsion Improved Aluminum Leg Leg Improved Aluminum Leg Hover Unit Hover Unit Utility Small Storage Unit Storage Small Storage Unit Weapon Light Assault Rifle Ballistic Gun Light Assault Rifle Launcher Grenade Launcher Build | -11 -10 -9 ------- Run | Scr Mat Mat Slots Evolved 2 | . . 2 Power 1 | . . 1 Propulsion . | . . . Utility . | . . . Weapon 1 | . . 1 Parts Attached 14 | 6 5 3 Power 2 | 1 . 1 Engine 2 | 1 . 1 Core . | . . . Reactor . | . . . Propulsion 6 | 2 4 . Treads . | . . . Leg 4 | 2 2 . Wheel . | . . . Hover 2 | . 2 . Flight . | . . . Utility 3 | 1 1 1 Device . | . . . Storage 3 | 1 1 1 Processor . | . . . Hackware . | . . . Protection . | . . . Artifact . | . . . Weapon 3 | 2 . 1 Energy Gun . | . . . Energy Cannon . | . . . Ballistic Gun 2 | 2 . . Ballistic Cannon . | . . . Launcher 1 | . . 1 Special Weapon . | . . . Impact Weapon . | . . . Slashing Weapon . | . . . Piercing Weapon . | . . . Special Melee Weapon . | . . . Unidentified Prototypes . | . . . Parts Lost 6 | . . 6 Power 2 | . . 2 Propulsion 2 | . . 2 Utility . | . . . Weapon 2 | . . 2 Highest Loss Streak 6 | . . 6 Average Slot Usage (%) 78 | . 85 62 Engine 12 | . 14 10 Leg 20 | . 20 20 Hover 5 | . 7 . Storage 13 | . 14 11 Ballistic Gun 25 | . 28 20 Naked Turns . | . . . Heaviest Build 12 | 12 12 12 Greatest Support 26 | 20 26 26 Greatest Overweight (x) 3 | 2 . 3 Average Overweight (x) . | . . . Largest Inventory Capacity 8 | 6 8 8 Average Capacity 5 | 4 6 6 Most Carried 6 | 2 6 6 Average Carried 4 | . 3 5 Final Capacity 8 | 6 6 8 Final Carried 6 | 1 6 3 Class Distribution -------------------- 100% | Mutant Dominant Class ---------------- Mutant | -10/Materials Mutant | -9/Materials Resources | -11 -10 -9 ----------- Run | Scr Mat Mat Matter Collected 153 | 96 57 . Remotely . | . . . Salvage Created 158 | . 57 101 Parts 13 | . 7 6 Haulers Intercepted . | . . . Recyclers Shooed . | . . . Parts Field Recycled . | . . . Retrieved Matter . | . . . Parts Self-Destructed . | . . . Prevented . | . . . Kills | -11 -10 -9 ------- Run | Scr Mat Mat Combat Hostiles Destroyed 5 | . 3 2 Guns 3 | . 3 . AOE 2 | . . 2 Classes Destroyed 4 | . 2 2 Worker 1 | . . 1 Watcher 2 | . 1 1 Swarmer 3 | . 3 . Grunt 2 | . . 2 Best Kill Streak 2 | . 2 2 Combat Bots Only 2 | . 2 2 Max Kills in Single Turn 1 | . 1 1 Gunslinging . | . . . Exploded 1 | . . 1 Melee . | . . . Uniques/NPCs Destroyed . | . . . Combat | -11 -10 -9 -------- Run | Scr Mat Mat Damage Taken 1277 | . 282 995 Core 502 | . 100 402 Absorbed by Shields . | . . . Core Remaining (%) 80 | 100 60 . Volleys Fired 28 | . 18 10 Largest 2 | . 2 2 Hottest 40 | . 40 40 Shots Fired 52 | . 36 16 Gun 49 | . 36 13 Cannon . | . . . Launcher 3 | . . 3 Special . | . . . Kinetic 49 | . 36 13 Thermal . | . . . Explosive 3 | . . 3 Electromagnetic . | . . . Robot Hit Streak 3 | . 3 3 Robot Miss Streak 3 | . 3 2 Penetration Max . | . . . Secondary Targets 2 | . 2 . Max Gunslinging Chain 1 | . 1 . Shots Hit Robots 23 | . 15 8 Core Hits 13 | . 4 9 Critical Hits . | . . . Critical Kills . | . . . Critical Parts Destroyed . | . . . Melee Attacks . | . . . Impact . | . . . Slashing . | . . . Piercing . | . . . Sneak Attacks . | . . . Combat Hostiles . | . . . Follow-up Attacks . | . . . Damage Inflicted 440 | . 156 284 Guns 235 | . 156 79 Cannons . | . . . Explosions 201 | . . 201 Melee . | . . . Ramming 4 | . . 4 Kinetic 235 | . 156 79 Thermal . | . . . Explosive 201 | . . 201 Electromagnetic . | . . . Impact . | . . . Slashing . | . . . Piercing . | . . . Highest Corruption 1 | . 1 . Average Corruption 1 | . 1 . Corruption Purged . | . . . Overload Shots . | . . . Overflow Damage . | . . . Projectiles . | . . . Explosions . | . . . Melee . | . . . Knockbacks . | . . . Impact . | . . . Kinetic . | . . . Secondary . | . . . Self-Inflicted Damage . | . . . Shots . | . . . Rammed . | . . . Targets Rammed 1 | . . 1 Kicked 1 | . . 1 Crushed . | . . . Highest Temperature 9 | . 8 9 Average Temperature 4 | . 4 4 Received Heat Transfer 396 | . . 396 Siege Activations . | . . . Robots Corrupted . | . . . Combat Hostiles . | . . . Parts Fried . | . . . Impact Corruptions . | . . . Robots Melted . | . . . Combat Hostiles . | . . . Parts Melted . | . . . Heat Transferred . | . . . Parts Sabotaged . | . . . Parts Stolen . | . . . Parts Stripped . | . . . Power Chain Reactions . | . . . Missiles Intercepted . | . . . Alert | -11 -10 -9 ------- Run | Scr Mat Mat Peak Influence 92 | . 92 57 Average Influence 39 | . 54 21 Maximum Alert Level . | . . . Low Security (%) 100 | 100 100 100 Level 1 . | . . . Level 2 . | . . . Level 3 . | . . . Level 4 . | . . . Level 5 . | . . . High Security . | . . . Max Security . | . . . Squads Dispatched 3 | . 1 2 Investigation . | . . . Extermination . | . . . Reinforcement 3 | . 1 2 Assault . | . . . Garrison . | . . . Intercept . | . . . Construction Impeded . | . . . Haulers Reinforced . | . . . Stealth | -11 -10 -9 --------- Run | Scr Mat Mat Distress Signals 2 | . . 2 Communications Jammed . | . . . Distress Signals . | . . . Times Spotted 18 | . 7 11 Peak Tracking Total 7 | . 4 7 Tactical Retreats 2 | . 1 1 Traps | -11 -10 -9 ------- Run | Scr Mat Mat Traps Triggered 1 | . 1 . Indirectly . | . . . Trap Hack Attempts . | . . . Triggered . | . . . Disarmed . | . . . Reprogrammed . | . . . Reused . | . . . Traps Extracted . | . . . Installed . | . . . Triggered . | . . . Machines | -11 -10 -9 ---------- Run | Scr Mat Mat Machines Disabled . | . . . Max in Single Turn . | . . . Machines Sabotaged . | . . . Garrisons Compromised . | . . . Overloaded Fab Kills . | . . . Fab Network Shutdowns . | . . . Hacking | -11 -10 -9 --------- Run | Scr Mat Mat Machines Accessed . | . . . Terminals . | . . . Fabricators . | . . . Repair Stations . | . . . Recycling Units . | . . . Scanalyzers . | . . . Garrison Access . | . . . Total Hacks . | . . . Successful . | . . . Failed . | . . . Catastrophic . | . . . Database Lockouts . | . . . Manual . | . . . Terminals . | . . . Fabricators . | . . . Repair Stations . | . . . Recycling Units . | . . . Scanalyzers . | . . . Garrison Access . | . . . Terminal Hacks . | . . . Fabricator Hacks . | . . . Repair Station Hacks . | . . . Recycling Unit Hacks . | . . . Scanalyzer . | . . . Garrison Access Hacks . | . . . Unauthorized Hacks . | . . . Terminals . | . . . Fabricators . | . . . Repair Stations . | . . . Recycling Units . | . . . Scanalyzers . | . . . Garrison Access . | . . . Data Cores Recovered . | . . . Used . | . . . Hacking Detections . | . . . Full Trace Events . | . . . Feedback Events . | . . . Feedback Blocked . | . . . Robot Schematics Acquired . | . . . Robots Built . | . . . Matter . | . . . Time . | . . . Total Robot Build Rating . | . . . Part Schematics Acquired . | . . . Parts Built . | . . . Matter . | . . . Time . | . . . Total Part Build Rating . | . . . Parts Repaired . | . . . Time . | . . . Parts Recycled . | . . . Recycled Matter . | . . . Retrieved Matter . | . . . Retrieved Components . | . . . Parts Scanalyzed . | . . . Part Schematics Acquired . | . . . Parts Damaged . | . . . Bothacking | -11 -10 -9 ------------ Run | Scr Mat Mat Used RIF Installer . | . . . Robots Hacked . | . . . Non-combat . | . . . Combat . | . . . Robot Hacks Applied . | . . . Relay Couplers Released . | . . . Robots Rewired . | . . . Allies Hacked . | . . . Hacks Repelled . | . . . Allies | -11 -10 -9 -------- Run | Scr Mat Mat Total Allies . | . . . Largest Group . | . . . Highest-Rated Group . | . . . Highest-Rated Ally . | . . . Total Orders . | . . . Ally Attacks . | . . . Total Damage . | . . . Kills . | . . . Allies Corrupted . | . . . Allies Melted . | . . . Intel | -11 -10 -9 ------- Run | Scr Mat Mat Robot Analysis Total . | . . . Derelict Logs Recovered . | . . . Drone Launches . | . . . Drone Recoveries . | . . . Exploration | -11 -10 -9 ------------- Run | Scr Mat Mat Turns Passed 657 | 78 408 171 Spaces Moved 534 | 58 360 116 Core 30 | 26 . 4 Treads . | . . . Legs 366 | 32 222 112 Wheels . | . . . Hover 138 | . 138 . Flight . | . . . Fastest Speed 50 | 50 56 120 Average Speed 102 | 112 95 121 Slowest Speed 200 | 150 120 200 Overloaded Moves . | . . . Propulsion Burnouts . | . . . Robots Hopped . | . . . Cave-ins Triggered . | . . . Exploration Rate (%) 19 | 4 43 12 Regions Visited 2 Branch Regions . Pre-discovered Areas . | . . . Known Exits Taken . | . . . Unknown Exits Taken 2 | 1 1 . Scrap Searched . | . . . Spaces Dug . | . . . Terrain Destroyed 22 | . . 22 Melee . | . . . Projectile . | . . . AOE 22 | . . 22 Actions | -11 -10 -9 --------- Run | Scr Mat Mat Total 594 | 70 392 132 Wait 2 | . . 2 Move 532 | 57 359 116 Hop . | . . . Pick Up 14 | 7 7 . Fast Attach . | . . . Attach 12 | 6 3 3 Detach 1 | . 1 . Swap 2 | . 2 . Drop 2 | . 2 . Fire 28 | . 18 10 Melee . | . . . Ram . | . . . Kick 1 | . . 1 Crush . | . . . Escape Stasis . | . . . Rewire . | . . . Trap . | . . . Miscellaneous . | . . . Route ------- -11/Scrapyard -10/Materials -9/Materials History --------- Turn | Location | Event 9 | -11/Scrapyard | Discovered new exit (range 14) 79 | -11/Scrapyard | Entered Materials 309 | -10/Materials | Build established: Mutant 469 | -10/Materials | Discovered new exit (range 16) 487 | -10/Materials | Entered another Materials area 487 | -9/Materials | Evolved 2 slots: Power x1, Weapon x1 648 | -9/Materials | Core integrity fell below 50% 654 | -9/Materials | Core integrity fell below 20% 658 | -9/Materials | Destroyed by Y-45 Defender with Heavy Assault Rifle Last Messages --------------- 00516_ ALERT: Hostiles spotted, dispatching reinforcements to Terminal M011. 00516_ O-16 Technician locks terminal. 00517_ K-01 Serf cleans the Terminal. 00520_ K-01 Serf destroyed. 00521_ O-16 Technician: "IFF HANDSHAKE FAILED. SECURING TERMINAL." 00524_ ALERT: Hostiles spotted, dispatching reinforcements to Terminal M008. 00582_ W-16 Scout sends out distress signal. 00587_ W-16 Scout destroyed. 00588_ R-06 Scavenger collects Sensor Array. 00592_ R-06 Scavenger collects Hover Unit. 00623_ Kicked Y-45 Defender out of the way. 00635_ Assault Rifle destroyed. 00637_ Imp. Aluminum Leg destroyed. 00641_ Lgt. Assault Rifle destroyed. 00641_ Ion Engine destroyed. 00643_ Imp. Aluminum Leg destroyed. 00646_ Lgt. Ion Engine destroyed. 00653_ G-34 Mercenary destroyed. Map ----- +----------------------------------------------------+ | ????????????????????????????????????????? | | ????????????????????????????????????????? | | ????????????????????????????????????????? | | ????????????????????????????????????????? | | ????????????????????????????????????????? | | ????????????????????????????????????????? | | ????????????????????????????????????????? | | ????????????????????????????????????????? | | ????????????????????????????????????????? | | ????????????????????????????????????????? | | ????????????????????????????????????????? | | ????????????????????????????????????????? | | ????????????????????????????????????????? | | ????????????????????????????????????????? | | ????????????????????????????????????????? | | ????????????????????????????????????????? | | ????????????????????????????????????????? | | ???????????????##############?????????? | | ???????????????# ! #?????????? | | ???????????????# """ """ #?????????? | | ???????????????# """ """ #?????????? | | ???????????????# """ """ #?????????? | | ???????????????# #?????????? | | ???????????# ??##### ##?????????? | | ???????????# ### ###????????# | | ???????????# Y@ t =% #????????# | | ???????????# ! ### Y = #????????# | | ???????????# ????# Y #????????+ | | ?????????????????##### #????????# | | ????????????????????????### ########## | | ??????????????????????????# % | | ????????????????????? ????# | | ????????????????????# ????# ########## | | ????????????????????# ????# #????????# | | ???????????????????# ????# #????????# | | ???????????????????? ??? #????????# | | ???????????????????? ?? #????????# | | ???????????????????? ?############### | | ????????????????????# ?# ## | | ????????????????????# ?# """ ## | | ????????????????????# ?# """ ## | | ????????????????????# ?# """ ## ######+ | | ???????????????????## ## ???# #??# | | ??????????????###+## ##+###### #### | | ??????????????# "" + " | | ??????????????# T ######### " | | ???????????????##+## % ###+########## " | | ???????????????????###### # | | ????????????????????????# """ """ # "" | | ????????????????????????# """ """ # "R | +----------------------------------------------------+ Best States ------------- Heat Dissipation 28 Energy Generation 10 Energy Capacity 250 Matter Stores 166 Matter Capacity 300 Sight Range 16 Terrain Scan Density 10 Evasion (%) 53 Item Schematics ----------------- None Robot Schematics ------------------ None Fabricated ------------ Nothing Alien Tech Used ----------------- None Achievements -------------- None Challenges ------------ None Game ------ Seed DeepMachineSpear Manual? 0 Play Time 00:09:55 Cumulative 11.5 hours Start 2020.05.08 @ 20:01:55 End 2020.05.08 @ 20:11:01 Sessions 1 Manual Loads 0 Difficulty Rogue Special Mode None Game No. 28 Rogue 28 Adventurer 0 Explorer 0 Win Type - Total 0 Types 0/0/0/0/0/0/0 Lore% 16 Gallery% 20 Achievement% 19 Wizard Run 0 Options --------- ASCII 0 Keyboard 0 Movement Mouse Keybinds 0 Fullscreen 2 Font 18/Terminus Map View 76x50 Tactical HUD 1 Map Filters NONE Filters NONE Steam 1 RUN: de7d8efa-2380-42e5-9cbe-5358ac975089